[Event "White Rook U14 Final 2019"]
[Site "Sochi"]
[Date "2019.06.07"]
[Round "6.7"]
[White "Zaiko, Stanislav"]
[Black "Zhambalov, Bator"]
[Result "1-0"]
[ECO "B22"]
[WhiteElo "1176"]
[BlackElo "1865"]
[Annotator "NA"]
[PlyCount "111"]
[EventDate "2019.06.02"]
[EventCountry "RUS"]
[SourceTitle "playchess.com"]
[Source "ChessBase"]
[SourceQuality "1"]
[TimeControl "5400+30"]

1. e4 {[%emt 0:00:00]} c5 {[%emt 0:00:00]} 2. Nf3 {[%emt 0:00:00]} Nc6 {[%emt 0:00:00]} 3. c3 {[%emt 0:00:00]} d5 {[%emt 0:00:00]} 4. exd5 {[%emt 0:00:00]} Qxd5 {[%emt 0:00:00]} 5. Be2 {[%emt 0:00:00]} Nf6 {[%emt 0:00:00]} 6. O-O {[%emt 0:00:00] B22: Sicilian: 2 c3} Bg4 {[%emt 0:00:00]} (6... e5 7. Na3 e4 8. Ne1 Be7 9. d3 O-O 10. dxe4 Qxe4 11. Bf3 Qf5 12. Nc4 {½-½ (25) Savic,M (2522)-Solak,D (2602) Banja Koviljaca 2013}) 7. h3 {[%emt 0:00:00]} Bh5 {[%emt 0:00:00]} 8. Na3 {[%emt 0:00:00]} e6 {[%emt 0:00:00]} 9. Nc2 {[%emt 0:00:00]} Be7 {[%emt 0:00:00]} 10. d4 {[%emt 0:00:00]} O-O {[%emt 0:00:00]} 11. Be3 {[%emt 0:00:00]} cxd4 {[%emt 0:00:00]} 12. Ncxd4 {[%emt 0:00:00]} Nxd4 {[%emt 0:00:00]} 13. Nxd4 {[%emt 0:00:00]} Bxe2 {[%emt 0:00:00]} 14. Qxe2 {[%emt 0:00:00]} Rfd8 {[%emt 0:00:00]} 15. Rfd1 {[%emt 0:00:00]} Qe4 $146 {[%emt 0:00:00]} ({Predecessor:} 15... a6 16. c4 Qa5 {1-0 (32) Huellen,R-Siepmann,M Lippstadt 1999}) 16. Qc2 {[%emt 0:00:00]} Qxc2 {[%emt 0:00:00]} 17. Nxc2 {[%emt 0:00:00]} Nd5 {[%emt 0:00:00]} 18. Bd4 {[%emt 0:00:00]} Bf6 {[%emt 0:00:00]} 19. Bxf6 {[%emt 0:00:00]} Nxf6 {[%emt 0:00:00]} 20. Ne3 {[%emt 0:00:00]} Kf8 {[%emt 0:00:00]} 21. Kf1 {[%emt 0:00:00]} Ke7 {[%emt 0:00:00]} 22. Ke2 {[%emt 0:00:00]} Nd5 {[%emt 0:00:00]} 23. Nxd5+ {[%emt 0:00:00]} Rxd5 {[%emt 0:00:00]} 24. Rxd5 {[%emt 0:00:00]} exd5 {[%emt 0:00:00]} 25. Rd1 {[%emt 0:00:00]} Rd8 {[%emt 0:00:00]} 26. Ke3 {[%emt 0:00:00]} Ke6 {[%emt 0:00:00]} 27. Rd4 {[%emt 0:00:00]} g6 {[%emt 0:00:00]} 28. Ra4 {[%emt 0:00:00]} a6 {[%emt 0:00:00]} 29. Rb4 {[%emt 0:00:00]} b5 {[%emt 0:00:00]} 30. g4 {[%emt 0:00:00]} g5 {[%emt 0:00:00]} 31. a4 {[%emt 0:00:00]} Rb8 {[%emt 0:00:00]} 32. Kd4 {[%emt 0:00:00]} Kd6 {[%emt 0:00:00]} 33. b3 {[%emt 0:00:00]} Re8 {[%emt 0:00:00]} 34. f3 {[%emt 0:00:00]} Kc6 {[%emt 0:00:00]} 35. axb5+ {[%emt 0:00:00]} axb5 {[%emt 0:00:00]} 36. c4 {[%emt 0:00:00]} dxc4 {[%emt 0:00:00]} 37. bxc4 {[%emt 0:00:00]} bxc4 {[%emt 0:00:00]} 38. Rxc4+ {[%emt 0:00:00]} Kd6 {[%emt 0:00:00]} 39. Ra4 {[%emt 0:00:00]} Re1 {[%emt 0:00:00]} 40. Ra6+ {[%emt 0:00:00]} Ke7 {[%emt 0:00:00]} 41. Rh6 {[%emt 0:00:00]} f6 {[%emt 0:00:00]} 42. Rxh7+ {[%emt 0:00:00]} Ke6 {[%emt 0:00:00]} 43. h4 {[%emt 1:51:30]} gxh4 {[%emt 1:51:30]} 44. Rxh4 {[%emt 0:00:30]} Kf7 {[%emt 0:00:30]} 45. Rh5 {[%emt 0:00:30]} Kg6 {[%emt 0:00:30]} 46. Rf5 {[%emt 0:00:30]} Re8 {[%emt 0:00:30]} 47. Kd3 {[%emt 0:00:30]} Re1 {[%emt 0:00:30]} 48. Kd2 {[%emt 0:00:30]} Re8 {[%emt 0:00:30]} 49. Ra5 {[%emt 0:00:30]} Re6 {[%emt 0:00:30]} 50. Kd3 {[%emt 0:00:30]} Re1 {[%emt 0:00:30]} 51. Kd2 {[%emt 0:00:30]} Re8 {[%emt 0:00:30]} 52. f4 {[%emt 0:00:30]} Re4 {[%emt 0:00:30]} 53. Rf5 {[%emt 0:00:30]} Re8 $11 {[%emt 0:00:30]} 54. Kd3 {[%emt 0:00:30]} Re1 {[%emt 0:00:30]} 55. Rh5 {[%emt 0:00:30]} Re6 {[%emt 0:00:30]} 56. f5+ {[%emt 0:00:30]} 1-0

[Event "White Rook U14 Final 2019"]
[Site "Sochi"]
[Date "2019.06.07"]
[Round "6.8"]
[White "Sargaeva, Darima"]
[Black "Zeliantsova, Kseniya"]
[Result "0-1"]
[ECO "B43"]
[WhiteElo "1506"]
[BlackElo "1892"]
[Annotator "NA"]
[PlyCount "48"]
[EventDate "2019.06.02"]
[EventCountry "RUS"]
[SourceTitle "playchess.com"]
[Source "ChessBase"]
[SourceQuality "1"]
[TimeControl "5400+30"]

1. e4 {[%emt 0:19:25]} c5 {[%emt 0:13:10]} 2. Nf3 {[%emt 0:00:27]} e6 {[%emt 0:01:53]} 3. d4 {[%emt 0:57:19]} cxd4 {[%emt 0:09:06]} 4. Nxd4 {[%emt 0:00:00]} a6 {[%emt 0:00:00]} 5. Bd3 {[%emt 0:00:00]} b5 {[%emt 0:00:00]} 6. Nc3 {[%emt 0:00:00]} Qb6 {[%emt 0:00:00]} 7. Nb3 {[%emt 0:00:00]} Qc7 {[%emt 0:00:00]} 8. O-O {[%emt 0:00:00]} Bb7 {[%emt 0:00:00]} 9. Qe2 {[%emt 0:00:00]} Nf6 {[%emt 0:00:00] B43: Sicilian: Kan Variation: 5 Nc3} 10. f4 {[%emt 0:17:49]} (10. e5 Nd5 11. Nxd5 Bxd5 12. a4 b4 13. Re1 h6 14. Bf4 Be7 15. Rad1 Bc6 16. Nd4 Bb7 17. Nf5 {1-0 (51) Najer,E (2663)-Ponizil,C (2494) Czech Republic 2019}) 10... d6 {[%emt 1:10:51]} 11. e5 {[%emt 0:00:30]} dxe5 {[%emt 0:00:30]} 12. fxe5 {[%emt 0:00:30]} Nfd7 {[%emt 0:00:30]} 13. Bf4 {[%emt 0:00:30]} Nc6 {[%emt 0:00:30]} 14. Rae1 {[%emt 0:00:30]} b4 $146 {[%emt 0:00:30]} ({Predecessor:} 14... Qb6+ 15. Rf2 Be7 16. Qh5 g6 17. Qh6 {½-½ (32) De Waele,W (2025)-Sorcinelli,A (2020) LSS email 2009}) 15. Nd1 {[%emt 0:00:30]} g5 {[%emt 0:00:30]} 16. Bxg5 {[%emt 0:00:30]} Rg8 {[%emt 0:00:30]} 17. Qh5 {[%emt 0:00:30]} Ncxe5 {[%emt 0:00:30] [#]} 18. g3 $19 {[%emt 0:00:30] [#]} (18. Rxf7 $1 $18 {[%mdl 512] and all is fine.} Rxg5 {[#]} (18... Nxf7 19. Rxe6+) 19. Rxf8+ $1 {[%mdl 512]} (19. Qxg5 Kxf7 20. Qh5+ Ke7 $17) 19... Kxf8 20. Qxg5) 18... Bc5+ $1 {[%emt 0:00:30]} ({Stronger than} 18... Qc6 19. Be4 $16) 19. Nxc5 $2 {[%emt 0:00:30]} (19. Ne3 Qc6 20. Nxc5 Nxc5 21. Rd1 Nf3+ 22. Qxf3 Qxf3 23. Rxf3 Bxf3 24. Rf1) 19... Qxc5+ {[%emt 0:00:30]} 20. Be3 {[%emt 0:00:30]} Qd5 {[%emt 0:00:30]} 21. Re2 {[%emt 0:00:30]} Nf6 {[%emt 0:00:30]} 22. Qh3 {[%emt 0:00:30]} Qh1+ {[%emt 0:00:30]} 23. Kf2 {[%emt 0:00:30]} Nfg4+ {[%emt 0:00:30]} 24. Ke1 {[%emt 0:00:30]} Nf3# {[%emt 0:00:30]} 0-1

[Event "White Rook U14 Final 2019"]
[Site "Sochi"]
[Date "2019.06.07"]
[Round "6.9"]
[White "Sargsyan, Gor K."]
[Black "Kurus, Artem"]
[Result "1-0"]
[ECO "B15"]
[WhiteElo "1641"]
[BlackElo "1769"]
[Annotator "NA"]
[PlyCount "91"]
[EventDate "2019.06.02"]
[EventCountry "RUS"]
[SourceTitle "playchess.com"]
[Source "ChessBase"]
[SourceQuality "1"]
[TimeControl "5400+30"]

1. e4 {[%emt 0:12:48]} c6 {[%emt 0:09:18]} 2. d4 {[%emt 0:09:05]} d5 {[%emt 0:25:24]} 3. Nd2 {[%emt 0:00:21]} dxe4 {[%emt 0:20:15]} 4. Nxe4 {[%emt 0:12:02]} Nf6 {[%emt 0:03:28]} 5. Nxf6+ {[%emt 0:00:08]} exf6 {[%emt 0:00:07]} 6. c3 {[%emt 0:00:07]} Bd6 {[%emt 0:08:26]} 7. Bd3 {[%emt 0:00:36]} O-O {[%emt 0:10:21]} 8. Ne2 {[%emt 0:12:25]} Re8 {[%emt 0:03:44]} 9. Qc2 {[%emt 0:01:01]} h5 {[%emt 0:04:42]} 10. Be3 {[%emt 0:26:11]} Nd7 {[%emt 0:03:20]} 11. O-O-O {[%emt 0:01:19]} Nf8 {[%emt 0:00:00]} 12. Ng3 {[%emt 0:02:10]} g6 {[%emt 0:00:49]} 13. Bh6 {[%emt 0:00:00]} f5 {[%emt 0:00:00]} 14. Ne2 {[%emt 0:00:17]} b5 {[%emt 0:04:08]} 15. h3 {[%emt 0:11:20]} Be7 {[%emt 0:02:45]} 16. Rdg1 {[%emt 0:02:00]} Bg5+ {[%emt 0:00:24]} 17. Bxg5 {[%emt 0:02:38]} Qxg5+ {[%emt 0:00:01]} 18. Kb1 {[%emt 0:00:47]} Qf6 {[%emt 0:00:34]} 19. f3 {[%emt 0:00:05]} Re3 {[%emt 0:00:32]} 20. Nf4 {[%emt 0:01:52]} Qg5 {[%emt 0:00:33]} 21. Ne2 {[%emt 0:00:06]} Bd7 {[%emt 0:00:02]} 22. Nc1 {[%emt 0:00:05]} Qg3 {[%emt 0:01:11]} 23. Ne2 {[%emt 0:00:51]} Qg5 {[%emt 0:00:18]} 24. g4 {[%emt 0:00:05]} fxg4 {[%emt 0:01:00]} 25. hxg4 {[%emt 0:00:05]} hxg4 {[%emt 0:00:00]} 26. fxg4 {[%emt 0:00:21]} Be6 {[%emt 0:00:23]} 27. Ng3 {[%emt 0:00:00]} Qd5 {[%emt 0:00:50]} 28. Qh2 {[%emt 0:00:00]} f6 {[%emt 0:00:22]} 29. Qh8+ {[%emt 0:00:43]} Kf7 {[%emt 0:00:34]} 30. Rf1 {[%emt 0:00:11]} Qxa2+ {[%emt 0:00:09]} 31. Kc1 {[%emt 0:00:26]} Qa1+ {[%emt 0:00:04]} 32. Bb1 {[%emt 0:00:06]} Rxc3+ {[%emt 0:00:33]} 33. bxc3 {[%emt 0:00:07]} Qxc3+ {[%emt 0:00:11]} 34. Bc2 {[%emt 0:00:10]} Qa3+ {[%emt 0:02:32]} 35. Kd2 {[%emt 0:07:02]} Qb4+ {[%emt 0:00:30]} 36. Ke3 {[%emt 0:00:30]} Qc3+ {[%emt 0:00:30]} 37. Bd3 {[%emt 0:00:30]} Bf5 {[%emt 0:00:30]} 38. gxf5 {[%emt 0:00:30]} Re8+ {[%emt 0:00:30]} 39. Ne4 {[%emt 0:00:30]} Rxe4+ {[%emt 0:00:30]} 40. Kxe4 {[%emt 0:00:30]} Qd2 {[%emt 0:00:30]} 41. fxg6+ {[%emt 0:00:30]} Ke8 {[%emt 0:00:30]} 42. Qh2 {[%emt 0:00:30]} Qg5 {[%emt 0:00:30]} 43. Qb8+ {[%emt 0:00:30]} Ke7 {[%emt 0:00:30]} 44. Qc7+ {[%emt 0:00:30]} Ke6 {[%emt 0:00:30]} 45. Qf7+ {[%emt 0:00:30]} Kd6 {[%emt 0:00:30]} 46. Rxf6+ {[%emt 0:00:30]} 1-0

[Event "White Rook U14 Final 2019"]
[Site "Sochi"]
[Date "2019.06.07"]
[Round "6.10"]
[White "Usov, Aleksandr E."]
[Black "Grigoryan, Hayk V."]
[Result "1/2-1/2"]
[ECO "C07"]
[WhiteElo "1812"]
[BlackElo "1423"]
[Annotator "NA"]
[PlyCount "26"]
[EventDate "2019.06.02"]
[EventCountry "RUS"]
[SourceTitle "playchess.com"]
[Source "ChessBase"]
[SourceQuality "1"]
[TimeControl "5400+30"]

1. e4 {[%emt 0:25:24]} e6 {[%emt 1:30:30]} 2. d4 {[%emt 1:05:36]} d5 {[%emt 0:00:30]} 3. Nd2 {[%emt 0:00:30]} c5 {[%emt 0:00:30]} 4. exd5 {[%emt 0:00:30]} Qxd5 {[%emt 0:00:30]} 5. dxc5 {[%emt 0:00:30]} Bxc5 {[%emt 0:00:30]} 6. Ngf3 {[%emt 0:00:30]} Nf6 {[%emt 0:00:30]} 7. Bc4 {[%emt 0:00:30]} Qd6 {[%emt 0:00:30]} 8. O-O {[%emt 0:00:30]} O-O {[%emt 0:00:30]} 9. c3 {[%emt 0:00:30]} Bb6 {[%emt 0:00:30]} 10. Qc2 {[%emt 0:00:30]} Bc7 {[%emt 0:00:30]} 11. Ne4 {[%emt 0:00:30]} Nxe4 {[%emt 0:00:30]} 12. Qxe4 {[%emt 0:00:30]} Nd7 {[%emt 0:00:30]} 13. Bg5 {[%emt 0:00:30]} h6 {[%emt 0:00:30]} 1/2-1/2

[Event "White Rook U14 Final 2019"]
[Site "Sochi"]
[Date "2019.06.07"]
[Round "6.11"]
[White "Hovhannisyan, Artyom"]
[Black "Saikin, Ilia"]
[Result "0-1"]
[ECO "B15"]
[WhiteElo "1458"]
[BlackElo "1641"]
[Annotator "NA"]
[PlyCount "110"]
[EventDate "2019.06.02"]
[EventCountry "RUS"]
[SourceTitle "playchess.com"]
[Source "ChessBase"]
[SourceQuality "1"]
[TimeControl "5400+30"]

1. e4 {[%emt 0:06:52]} c6 {[%emt 0:16:32]} 2. d4 {[%emt 0:03:21]} d5 {[%emt 0:00:10]} 3. Nc3 {[%emt 0:00:30]} dxe4 {[%emt 0:19:47]} 4. Nxe4 {[%emt 0:02:55]} Nf6 {[%emt 0:01:33]} 5. Nxf6+ {[%emt 0:24:31]} exf6 {[%emt 0:24:07]} 6. Nf3 {[%emt 0:03:43]} Bd6 {[%emt 0:01:25]} 7. Be3 {[%emt 0:00:29]} O-O {[%emt 0:00:22]} 8. Bd3 {[%emt 0:00:57]} Re8 {[%emt 0:03:21]} 9. Qd2 {[%emt 0:20:58]} Be6 {[%emt 0:12:05]} 10. O-O {[%emt 0:01:49]} Nd7 {[%emt 0:05:13]} 11. c4 {[%emt 0:00:56]} Nf8 {[%emt 0:04:31]} 12. Rae1 {[%emt 0:00:08]} Qb8 {[%emt 0:01:26]} 13. h3 {[%emt 0:02:01]} Qc8 {[%emt 0:00:42]} 14. Bf4 {[%emt 0:00:20]} Qc7 {[%emt 0:01:57]} 15. Bxd6 {[%emt 0:00:16]} Qxd6 {[%emt 0:00:14]} 16. Re4 {[%emt 0:02:46]} Ng6 {[%emt 0:01:15]} 17. Rfe1 {[%emt 0:00:08]} Red8 {[%emt 0:00:22]} 18. b3 {[%emt 0:00:10]} Qd7 {[%emt 0:01:26]} 19. c5 {[%emt 0:00:51]} Bf5 {[%emt 0:00:07]} 20. R4e3 {[%emt 0:00:22]} Bxd3 {[%emt 0:01:20]} 21. Rxd3 {[%emt 0:00:30]} Qd5 {[%emt 0:00:10]} 22. Rde3 {[%emt 0:02:22]} Rab8 {[%emt 0:01:41]} 23. Re4 {[%emt 0:09:09]} h6 {[%emt 0:00:22]} 24. Nh4 {[%emt 0:00:10]} Nxh4 {[%emt 0:00:37]} 25. Rxh4 {[%emt 0:00:09]} Re8 {[%emt 0:00:23]} 26. Re3 {[%emt 0:00:05]} Re6 {[%emt 0:00:38]} 27. Rg4 {[%emt 0:00:12]} g5 {[%emt 0:00:17]} 28. Rgg3 {[%emt 0:00:25]} Rbe8 {[%emt 0:00:04]} 29. Rgf3 {[%emt 0:01:05]} f5 {[%emt 0:00:19]} 30. Rxe6 {[%emt 0:00:10]} Rxe6 {[%emt 0:01:13]} 31. Re3 {[%emt 0:00:35]} Kg7 {[%emt 0:00:42]} 32. Rxe6 {[%emt 0:03:38]} fxe6 {[%emt 0:00:15]} 33. f4 {[%emt 0:00:09]} Kf6 {[%emt 0:00:19]} 34. Kf2 {[%emt 0:00:12]} Qe4 {[%emt 0:00:11]} 35. g3 {[%emt 0:00:06]} Qh1 {[%emt 0:00:02]} 36. Qc3 {[%emt 0:00:19]} Qh2+ {[%emt 0:00:08]} 37. Ke1 {[%emt 0:00:06]} Qg1+ {[%emt 0:00:07]} 38. Ke2 {[%emt 0:00:04]} Qg2+ {[%emt 0:00:10]} 39. Ke1 {[%emt 0:00:07]} Qe4+ {[%emt 0:00:08]} 40. Kf2 {[%emt 0:00:04]} gxf4 {[%emt 0:00:03]} 41. d5+ {[%emt 0:00:08]} e5 {[%emt 0:00:12]} 42. d6 {[%emt 0:00:05]} fxg3+ {[%emt 0:05:04]} 43. Kxg3 {[%emt 0:17:37]} f4+ {[%emt 0:00:30]} 44. Kf2 {[%emt 0:00:30]} Qd5 {[%emt 0:00:30]} 45. Kg1 {[%emt 0:00:30]} b6 {[%emt 0:00:30]} 46. cxb6 {[%emt 0:00:30]} axb6 {[%emt 0:00:30]} 47. Qb4 {[%emt 0:00:30]} Qc5+ {[%emt 0:00:30]} 48. Qxc5 {[%emt 0:00:30]} bxc5 {[%emt 0:00:30]} 49. Kf2 {[%emt 0:00:30]} e4 {[%emt 0:00:30]} 50. a4 {[%emt 0:00:30]} Ke6 {[%emt 0:00:30]} 51. Ke2 {[%emt 0:00:30]} Kxd6 {[%emt 0:00:30]} 52. Kf2 {[%emt 0:00:30]} Kc7 {[%emt 0:00:30]} 53. Ke2 {[%emt 0:00:30]} Kb6 {[%emt 0:00:30]} 54. Kd2 {[%emt 0:00:30]} Ka5 {[%emt 0:00:30]} 55. Ke2 {[%emt 0:00:30]} c4 {[%emt 0:00:30]} 0-1

[Event "White Rook U14 Final 2019"]
[Site "Sochi"]
[Date "2019.06.07"]
[Round "6.12"]
[White "Krupnova, Anna"]
[Black "Hakobyan, Astghik"]
[Result "0-1"]
[ECO "E12"]
[WhiteElo "1714"]
[BlackElo "1791"]
[Annotator "NA"]
[PlyCount "31"]
[EventDate "2019.06.02"]
[EventCountry "RUS"]
[SourceTitle "playchess.com"]
[Source "ChessBase"]
[SourceQuality "1"]
[TimeControl "5400+30"]

1. d4 {[%emt 0:12:32]} Nf6 {[%emt 0:24:31]} 2. c4 {[%emt 0:00:40]} e6 {[%emt 0:00:30]} 3. Nf3 {[%emt 0:00:40]} b6 {[%emt 0:00:31]} 4. a3 {[%emt 0:00:58]} Bb7 {[%emt 0:02:28]} 5. Bf4 {[%emt 0:00:35]} d5 {[%emt 0:00:38]} 6. cxd5 {[%emt 0:00:33]} Nxd5 {[%emt 0:00:36]} 7. Bg3 {[%emt 1:17:32]} c5 {[%emt 1:04:16]} 8. Qc2 {[%emt 0:00:30]} cxd4 {[%emt 0:00:30]} 9. Nxd4 {[%emt 0:00:30]} Bc5 {[%emt 0:00:30]} 10. e3 {[%emt 0:00:30]} Bxd4 {[%emt 0:00:30]} 11. Bb5+ {[%emt 0:00:30]} Nd7 {[%emt 0:00:30]} 12. exd4 {[%emt 0:00:30]} O-O {[%emt 0:00:30]} 13. O-O {[%emt 0:00:30]} N7f6 {[%emt 0:00:30]} 14. Bd3 {[%emt 0:00:30]} Rc8 {[%emt 0:00:30]} 15. Qe2 {[%emt 0:00:30]} Ne7 {[%emt 0:00:30]} 16. Rd1 {[%emt 0:00:30]} 0-1

[Event "White Rook U14 Final 2019"]
[Site "Sochi"]
[Date "2019.06.07"]
[Round "6.13"]
[White "Erastov, Semen"]
[Black "Kuzmin, Roman"]
[Result "1/2-1/2"]
[ECO "D93"]
[WhiteElo "2028"]
[BlackElo "2119"]
[Annotator "ChessBase"]
[PlyCount "31"]
[EventDate "2019.06.02"]
[EventCountry "RUS"]
[SourceTitle "playchess.com"]
[Source "ChessBase"]
[SourceQuality "1"]
[TimeControl "5400+30"]

1. d4 {[%emt 0:13:27]} Nf6 {[%emt 0:36:23]} 2. c4 {[%emt 0:02:49]} g6 {[%emt 0:00:41]} 3. Nc3 {[%emt 0:29:16]} d5 {[%emt 0:16:19]} 4. Bf4 {[%emt 0:15:05]} Bg7 {[%emt 0:06:55]} 5. e3 {[%emt 0:04:40]} O-O {[%emt 0:00:08]} 6. Nf3 {[%emt 0:02:27]} c5 {[%emt 0:00:21]} 7. dxc5 {[%emt 0:03:41]} Qa5 {[%emt 0:32:43]} 8. Rc1 {[%emt 0:22:35]} Rd8 {[%emt 0:00:30]} 9. Qb3 {[%emt 0:00:30]} Qxc5 {[%emt 0:00:30]} 10. Be2 {[%emt 0:00:30]} Nc6 {[%emt 0:00:30]} 11. O-O {[%emt 0:00:30]} dxc4 {[%emt 0:00:30]} 12. Bxc4 {[%emt 0:00:30]} e6 {[%emt 0:00:30]} 13. Bb5 {[%emt 0:00:30]} Bd7 {[%emt 0:00:30]} 14. Na4 {[%emt 0:00:30]} Qe7 {[%emt 0:00:30]} 15. Nc5 {[%emt 0:00:30]} Be8 {[%emt 0:00:30]} 16. Ne5 {[%emt 0:00:30]} 1/2-1/2

[Event "White Rook U14 Final 2019"]
[Site "Sochi"]
[Date "2019.06.07"]
[Round "6.14"]
[White "Pingin, Artem"]
[Black "Zhukov, Maksim"]
[Result "1/2-1/2"]
[ECO "B15"]
[WhiteElo "2108"]
[BlackElo "1986"]
[Annotator "ChessBase"]
[PlyCount "28"]
[EventDate "2019.06.02"]
[EventCountry "RUS"]
[SourceTitle "playchess.com"]
[Source "ChessBase"]
[SourceQuality "1"]
[TimeControl "5400+30"]

1. e4 {[%emt 0:18:45]} c6 {[%emt 1:30:00]} 2. Nc3 {[%emt 0:01:28]} d5 {[%emt 0:00:00]} 3. Nf3 {[%emt 0:00:00]} g6 {[%emt 0:00:00]} 4. d4 {[%emt 0:00:00]} Bg7 {[%emt 0:00:00]} 5. h3 {[%emt 0:00:00]} e6 {[%emt 0:00:00]} 6. Bd3 {[%emt 0:00:00]} Ne7 {[%emt 0:03:00]} 7. e5 {[%emt 1:13:17]} c5 {[%emt 0:00:30]} 8. Nb5 {[%emt 0:00:30]} O-O {[%emt 0:00:30]} 9. c3 {[%emt 0:00:30]} Qa5 {[%emt 0:00:30]} 10. dxc5 {[%emt 0:00:30]} Nd7 {[%emt 0:00:30]} 11. b4 {[%emt 0:00:30]} Qd8 {[%emt 0:00:30]} 12. Bf4 {[%emt 0:00:30]} Nc6 {[%emt 0:00:30]} 13. Qe2 {[%emt 0:00:30]} a5 {[%emt 0:00:30]} 14. Nbd4 {[%emt 0:00:30]} axb4 {[%emt 0:00:30]} 1/2-1/2

[Event "White Rook U14 Final 2019"]
[Site "Sochi"]
[Date "2019.06.07"]
[Round "6.15"]
[White "Ermolaev, Ivan"]
[Black "Shirkunov, Alexandr"]
[Result "1/2-1/2"]
[ECO "B14"]
[WhiteElo "1776"]
[BlackElo "1557"]
[Annotator "NA"]
[PlyCount "72"]
[EventDate "2019.06.02"]
[EventCountry "RUS"]
[SourceTitle "playchess.com"]
[Source "ChessBase"]
[SourceQuality "1"]
[TimeControl "5400+30"]

1. e4 {[%emt 0:00:00]} c6 {[%emt 0:00:00]} 2. d4 {[%emt 0:00:00]} d5 {[%emt 0:00:00]} 3. exd5 {[%emt 0:00:00]} cxd5 {[%emt 0:00:00]} 4. c4 {[%emt 0:00:00]} Nf6 {[%emt 0:00:00]} 5. Nc3 {[%emt 0:00:00]} g6 {[%emt 0:00:00]} 6. cxd5 {[%emt 0:00:00]} Bg7 {[%emt 0:00:00]} 7. Nf3 {[%emt 0:00:00]} O-O {[%emt 0:00:00]} 8. Bc4 {[%emt 0:00:00]} Nbd7 {[%emt 0:00:00]} 9. O-O {[%emt 0:00:00]} Nb6 {[%emt 0:00:00]} 10. Bb3 {[%emt 0:00:00]} Nfxd5 {[%emt 0:00:00]} 11. h3 {[%emt 0:00:00]} Nxc3 {[%emt 0:00:00]} 12. bxc3 {[%emt 0:00:00]} Qc7 {[%emt 0:00:00]} 13. Qd2 {[%emt 0:00:00]} Bf5 {[%emt 0:00:00]} 14. Ba3 {[%emt 0:00:00]} a5 {[%emt 0:00:00]} 15. Bc5 {[%emt 0:00:00]} a4 {[%emt 0:00:00]} 16. Bxb6 {[%emt 0:00:00]} Qxb6 {[%emt 0:00:00]} 17. Bc2 {[%emt 0:00:00]} Bxc2 {[%emt 1:38:30]} 18. Qxc2 {[%emt 1:39:00]} Rfc8 {[%emt 0:00:30]} 19. Rab1 {[%emt 0:00:30]} Qc6 {[%emt 0:00:30]} 20. Rfc1 {[%emt 0:00:30]} Bh6 {[%emt 0:00:30]} 21. Nd2 {[%emt 0:00:30]} e6 {[%emt 0:00:30]} 22. Qd3 {[%emt 0:00:30]} Qd5 {[%emt 0:00:30]} 23. c4 {[%emt 0:00:30]} Qa5 {[%emt 0:00:30]} 24. Rc2 {[%emt 0:00:30]} Bxd2 {[%emt 0:00:30]} 25. Rxd2 {[%emt 0:00:30]} Rxc4 {[%emt 0:00:30]} 26. Qxc4 {[%emt 0:00:30]} Qxd2 {[%emt 0:00:30]} 27. Rxb7 {[%emt 0:00:30]} Qe1+ {[%emt 0:00:30]} 28. Qf1 {[%emt 0:00:30]} Qd2 {[%emt 0:00:30]} 29. Qc4 {[%emt 0:00:30]} Qe1+ {[%emt 0:00:30]} 30. Qf1 {[%emt 0:00:30]} Qxf1+ {[%emt 0:00:30]} 31. Kxf1 {[%emt 0:00:30]} Rc8 {[%emt 0:00:30]} 32. Rb2 {[%emt 0:00:30]} Rc4 {[%emt 0:00:30]} 33. Rd2 {[%emt 0:00:30]} Rc3 {[%emt 0:00:30]} 34. Ke2 {[%emt 0:00:30]} a3 {[%emt 0:00:30]} 35. Rd3 {[%emt 0:00:30]} Rc2+ {[%emt 0:00:30]} 36. Rd2 {[%emt 0:00:30]} Rc3 {[%emt 0:00:30]} 1/2-1/2

[Event "White Rook U14 Final 2019"]
[Site "Sochi"]
[Date "2019.06.07"]
[Round "6.16"]
[White "Toledo Flores, Marianna"]
[Black "Kuzmina, Varvara"]
[Result "1/2-1/2"]
[ECO "A15"]
[WhiteElo "1530"]
[BlackElo "1190"]
[Annotator "NA RC"]
[PlyCount "23"]
[EventDate "2019.06.02"]
[EventCountry "RUS"]
[SourceTitle "playchess.com"]
[Source "ChessBase"]
[SourceQuality "1"]
[TimeControl "5400+30"]

1. Nf3 {[%emt 0:00:00]} Nf6 {[%emt 0:00:00]} 2. c4 {[%emt 0:00:00]} g6 {[%emt 0:00:00]} 3. b4 {[%emt 0:00:00]} Bg7 {[%emt 0:00:08]} 4. Bb2 {[%emt 0:00:00]} O-O {[%emt 0:00:26]} 5. e3 {[%emt 0:00:00]} d5 {[%emt 0:00:21]} 6. a3 {[%emt 0:00:53]} Nbd7 {[%emt 0:03:23]} 7. Qc2 {[%emt 0:00:54]} e6 {[%emt 0:02:27]} 8. Be2 {[%emt 0:00:27]} b6 {[%emt 0:01:30]} 9. O-O {[%emt 0:00:40]} Bb7 {[%emt 0:04:04]} 10. c5 {[%emt 0:01:32]} c6 {[%emt 0:00:01]} 11. d4 {[%emt 0:03:35]} b5 {[%emt 0:00:30]} 12. Nbd2 {[%emt 0:00:30]} 1/2-1/2